Cogmind - Beta 13 @@@ ROGUE MODE // 2024.04.25 @ 21:08:35 Player: Faunarr Result: Destroyed by D-53 Grenadier with Mini Grenade Launcher Performance ------------- Evolutions (0) 0 Regions Visited (2) 400 Robots Destroyed (24) 120 Value Destroyed (368) 368 Prototype IDs (0) 0 Alien Tech Used (0) 0 Bonus (0) 0 TOTAL SCORE: 888 Bonus ------- None Cogmind --------- Core Integrity 0/250 Matter 297/300 Energy 99/100 System Corruption 0% Temperature Cool (0) Movement Core (50) Location -10/Mines Parts ------- > --- POWER (1) -------- (None) > --- PROPULSION (2) --- (None) > --- UTILITY (2) ------ (None) > --- WEAPON (2) ------- (None) > --- INVENTORY (5) ---- Ion Engine Small Storage Unit ECM Suite Beam Cannon Assault Rifle Peak State ------------ > --- POWER ------------ Light Nuclear Core > --- PROPULSION ------- Wheel > --- UTILITY ---------- Huge Storage Unit Improved Terrain Scanner > --- WEAPON ----------- Medium Laser Assault Rifle > --- INVENTORY -------- Ion Engine Small Storage Unit ECM Suite Beam Cannon Assault Rifle [Rating: 10] Favorites ----------- Power Ion Engine Engine Ion Engine Power Core Light Nuclear Core Propulsion Light Treads Treads Light Treads Wheel Wheel Utility Improved Terrain Scanner Device Improved Terrain Scanner Storage Huge Storage Unit Weapon Medium Laser Energy Gun Medium Laser Ballistic Gun Assault Rifle Launcher Grenade Launcher Build | -11 -10 -10 ------- Run | Yrd Mat Min Slots Evolved . | . . . Power . | . . . Propulsion . | . . . Utility . | . . . Weapon . | . . . Parts Attached 12 | 6 3 3 Power 2 | 1 . 1 Engine 1 | 1 . . Core 1 | . . 1 Reactor . | . . . Propulsion 3 | 2 1 . Treads 2 | 2 . . Leg . | . . . Wheel 1 | . 1 . Hover . | . . . Flight . | . . . Utility 3 | 1 2 . Device 1 | . 1 . Storage 2 | 1 1 . Processor . | . . . Hackware . | . . . Protection . | . . . Artifact . | . . . Weapon 4 | 2 . 2 Energy Gun 1 | 1 . . Energy Cannon . | . . . Ballistic Gun 2 | 1 . 1 Ballistic Cannon . | . . . Launcher 1 | . . 1 Special Weapon . | . . . Impact Weapon . | . . . Slashing Weapon . | . . . Piercing Weapon . | . . . Special Melee Weapon . | . . . Unidentified Prototypes . | . . . Parts Lost 5 | . 1 4 Power 1 | . . 1 Propulsion 2 | . 1 1 Utility . | . . . Weapon 2 | . . 2 Highest Loss Streak 1 | . 1 1 To Critical Strikes . | . . . Average Slot Usage (%) 96 | . 99 88 Engine 12 | . 14 8 Core 1 | . . 5 Treads 14 | . 18 4 Wheel 10 | . 9 14 Device 14 | . 14 14 Storage 14 | . 14 14 Energy Gun 14 | . 14 14 Ballistic Gun 13 | . 14 13 Naked Turns 1 | . . 1 Heaviest Build 90 | 14 90 90 Greatest Support 40 | 40 40 10 Greatest Overweight (x) 8 | . 8 8 Average Overweight (x) 5 | . 6 7 Largest Inventory Capacity 25 | 8 25 25 Average Capacity 16 | 7 19 24 Most Carried 6 | 5 6 6 Average Carried 4 | 3 4 5 Final Capacity 25 | 8 25 5 Final Carried 6 | 4 6 5 Class Distribution -------------------- 100% | Mutant Dominant Class ---------------- Mutant | -10/Materials Mutant | -10/Mines Resources | -11 -10 -10 ----------- Run | Yrd Mat Min Matter Collected 496 | 308 111 77 Remotely . | . . . Salvage Created 574 | 242 210 122 Parts 42 | 26 6 10 Haulers Intercepted . | . . . Recyclers Shooed 1 | 1 . . Parts Field Recycled . | . . . Retrieved Matter . | . . . Parts Self-Destructed . | . . . Prevented . | . . . Kills | -11 -10 -10 ------- Run | Yrd Mat Min Combat Hostiles Destroyed 14 | . 7 7 Guns 12 | . 7 5 AOE 2 | . . 2 Classes Destroyed 4 | 2 2 . Tunneler 9 | 9 . . Recycler 1 | 1 . . Swarmer 9 | . 3 6 Grunt 5 | . 4 1 Best Kill Streak 5 | 5 5 3 Combat Bots Only 5 | . 5 3 Max Kills in Single Turn 2 | 1 1 2 Gunslinging . | . . . Exploded 2 | . . 2 Melee . | . . . Uniques/NPCs Destroyed . | . . . Combat | -11 -10 -10 -------- Run | Yrd Mat Min Hostile Shots Fired 110 | . 66 44 Missed 31 | . 22 9 Damage Taken 1028 | . 462 566 Core 263 | . 56 207 Absorbed by Shields . | . . . Core Remaining (%) 100 | 100 . . Volleys Fired 64 | 16 30 18 Largest 2 | 2 2 2 Hottest 80 | 70 70 80 Shots Fired 127 | 32 60 35 Gun 125 | 32 60 33 Cannon . | . . . Launcher 2 | . . 2 Special . | . . . Kinetic 62 | 16 30 16 Thermal 63 | 16 30 17 Explosive 2 | . . 2 Electromagnetic . | . . . Robot Hit Streak 16 | 5 16 7 Robot Miss Streak 6 | 1 6 6 Penetration Max . | . . . Secondary Targets 1 | . . 1 Max Gunslinging Chain 1 | . . 1 Shots Hit Robots 80 | 20 43 17 Core Hits 31 | 10 13 8 Critical Kills . | . . . Critical Parts Destroyed . | . . . Critical Strikes 5 | . 3 2 Burn 5 | . 3 2 Melee Attacks . | . . . Impact . | . . . Slashing . | . . . Piercing . | . . . Sneak Attacks . | . . . Combat Hostiles . | . . . Follow-up Attacks . | . . . Damage Inflicted 1240 | 249 592 399 Guns 1027 | 249 558 220 Cannons . | . . . Explosions 179 | . . 179 Melee . | . . . Ramming 34 | . 34 . Kinetic 497 | 110 268 119 Thermal 530 | 139 290 101 Explosive 179 | . . 179 Electromagnetic . | . . . Impact . | . . . Slashing . | . . . Piercing . | . . . Highest Corruption . | . . . Average Corruption . | . . . Corruption Purged . | . . . Corruption Blocked . | . . . Overload Shots . | . . . Overflow Damage 57 | . . 57 Projectiles . | . . . Explosions 57 | . . 57 Melee . | . . . Knockbacks . | . . . Impact . | . . . Kinetic . | . . . Secondary . | . . . Self-Inflicted Damage 64 | . 15 49 Shots 2 | . . 2 Rammed 3 | . 3 . Targets Rammed 3 | . 3 . Kicked . | . . . Crushed . | . . . Highest Temperature 213 | 72 213 75 Average Temperature 57 | 25 86 30 Received Heat Transfer 189 | . 147 42 Siege Activations . | . . . Robots Corrupted . | . . . Combat Hostiles . | . . . Parts Fried . | . . . Impact Corruptions . | . . . Robots Melted . | . . . Combat Hostiles . | . . . Parts Melted 6 | 1 3 2 Heat Transferred 1924 | 407 1073 444 Parts Sabotaged . | . . . Parts Stolen . | . . . Parts Stripped . | . . . Power Chain Reactions . | . . . Alert | -11 -10 -10 ------- Run | Yrd Mat Min Peak Influence 220 | 50 220 185 Initial 7 | . . 7 Average 90 | 30 121 130 Maximum Alert Level 1 | . 1 . Low Security (%) 81 | 100 59 100 Level 1 18 | . 40 . Level 2 . | . . . Level 3 . | . . . Level 4 . | . . . Level 5 . | . . . High Security . | . . . Max Security . | . . . Squads Dispatched 1 | . 1 . Investigation 1 | . 1 . Extermination . | . . . Reinforcement . | . . . Assault . | . . . Garrison . | . . . Intercept . | . . . Searches Triggered . | . . . Construction Impeded . | . . . Haulers Reinforced . | . . . Active Scanning Responses . | . . . Cargo Convoy Interrupts . | . . . Stealth | -11 -10 -10 --------- Run | Yrd Mat Min Distress Signals 2 | . 2 . Communications Jammed . | . . . Distress Signals . | . . . Times Spotted 25 | . 14 11 Peak Tracking Total 7 | . 7 3 Tactical Retreats 3 | . 1 2 Traps | -11 -10 -10 ------- Run | Yrd Mat Min Traps Triggered . | . . . Indirectly . | . . . Trap Hack Attempts . | . . . Triggered . | . . . Disarmed . | . . . Reprogrammed . | . . . Reused . | . . . Traps Extracted . | . . . Installed . | . . . Triggered . | . . . Machines | -11 -10 -10 ---------- Run | Yrd Mat Min Machines Disabled . | . . . Max in Single Turn . | . . . Machines Repaired . | . . . Machines Dismantled . | . . . Machines Sabotaged . | . . . Overloaded Fab Kills . | . . . Hacking | -11 -10 -10 --------- Run | Yrd Mat Min Machines Accessed 4 | . 4 . Terminals 2 | . 2 . Fabricators . | . . . Repair Stations . | . . . Recycling Units 2 | . 2 . Scanalyzers . | . . . Garrison Access . | . . . Total Hacks 6 | . 6 . Successful 3 | . 3 . Failed 3 | . 3 . Catastrophic 1 | . 1 . Database Lockouts . | . . . Manual 1 | . 1 . Terminals 3 | . 3 . Fabricators . | . . . Repair Stations . | . . . Recycling Units 3 | . 3 . Scanalyzers . | . . . Garrison Access . | . . . Terminal Hacks 2 | . 2 . Emergency Access Points 1 | . 1 . Zone Layout 1 | . 1 . Fabricator Hacks . | . . . Repair Station Hacks . | . . . Recycling Unit Hacks . | . . . Scanalyzer . | . . . Garrison Access Hacks . | . . . Unauthorized Hacks 1 | . 1 . Terminals . | . . . Fabricators . | . . . Repair Stations . | . . . Recycling Units 1 | . 1 . Reject 1 | . 1 . Scanalyzers . | . . . Garrison Access . | . . . Data Cores Recovered . | . . . Used . | . . . Hacking Detections 1 | . 1 . Full Trace Events 1 | . 1 . Feedback Events . | . . . Feedback Blocked . | . . . Robot Schematics Acquired . | . . . Robots Built . | . . . Authchips . | . . . Time . | . . . Total Robot Build Rating . | . . . Part Schematics Acquired . | . . . Parts Built . | . . . Authchips . | . . . Time . | . . . Total Part Build Rating . | . . . Parts Repaired . | . . . Time . | . . . Parts Recycled . | . . . Recycled Matter . | . . . Retrieved Matter . | . . . Retrieved Components . | . . . Parts Scanalyzed . | . . . Part Schematics Acquired . | . . . Parts Damaged . | . . . Bothacking | -11 -10 -10 ------------ Run | Yrd Mat Min Used RIF Installer . | . . . Robots Hacked . | . . . Non-combat . | . . . Combat . | . . . Robot Hacks Applied . | . . . Relay Couplers Released . | . . . Fabnet Peak Effective % . | . . . Robots Rewired . | . . . Allies Hacked . | . . . Hacks Repelled . | . . . Allies | -11 -10 -10 -------- Run | Yrd Mat Min Total Allies . | . . . Largest Group . | . . . Highest-Rated Group . | . . . Highest-Rated Ally . | . . . Total Orders . | . . . Ally Attacks . | . . . Total Damage . | . . . Kills . | . . . Allies Corrupted . | . . . Allies Melted . | . . . Intel | -11 -10 -10 ------- Run | Yrd Mat Min Robot Analysis Total . | . . . Derelict Logs Recovered . | . . . Drone Launches . | . . . Drone Recoveries . | . . . Exploration | -11 -10 -10 ------------- Run | Yrd Mat Min Turns Passed 1256 | 450 562 244 Spaces Moved 430 | 96 240 94 Core 14 | 12 . 2 Treads 139 | 84 55 . Legs . | . . . Wheels 277 | . 185 92 Hover . | . . . Flight . | . . . Fastest Speed 50 | 50 160 50 Average Speed 182 | 146 190 196 Slowest Speed 200 | 160 200 200 Overloaded Moves . | . . . Propulsion Burnouts . | . . . Robots Hopped . | . . . Cave-ins Triggered . | . . . Exploration Rate (%) 25 | 5 54 16 Regions Visited 2 Branch Regions 1 Pre-discovered Areas . | . . . Known Exits Taken . | . . . Unknown Exits Taken 2 | 1 1 . Scrap Searched . | . . . Spaces Dug . | . . . Terrain Destroyed 9 | . . 9 Melee . | . . . Projectile . | . . . AOE 9 | . . 9 Terrain Rammed . | . . . Walls Destroyed . | . . . Machines Disabled . | . . . Actions | -11 -10 -10 --------- Run | Yrd Mat Min Total 772 | 374 281 117 Wait 252 | 247 3 2 Move 428 | 95 239 94 Hop . | . . . Pick Up 13 | 10 3 . Fast Attach 1 | . . 1 Attach 9 | 6 2 1 Detach . | . . . Swap 2 | . 1 1 Drop . | . . . Fire 64 | 16 30 18 Melee . | . . . Ram 2 | . 2 . Kick . | . . . Crush 1 | . 1 . Escape Stasis . | . . . Rewire . | . . . Trap . | . . . Miscellaneous . | . . . Route ------- -11/Scrapyard -10/Materials (discovered 2 exits: [*Mat] / [*Min]) -10/Mines History --------- Turn | Location | Event 8 | -11/Scrapyard | Discovered new exit (range 15) 451 | -11/Scrapyard | Entered Materials 472 | -10/Materials | Build established: Mutant 784 | -10/Materials | Discovered new exit (range 16) 943 | -10/Materials | Discovered new exit (range 7) 1013 | -10/Materials | Entered Mines 1212 | -10/Mines | Assembled infested the area 1252 | -10/Mines | Core integrity fell below 50% 1256 | -10/Mines | Core integrity fell below 20% 1256 | -10/Mines | Released all parts (5) 1257 | -10/Mines | Destroyed by D-53 Grenadier with Mini Grenade Launcher Last Messages --------------- 01176_ S-10 Pest destroyed. 01177_ U-05 Engineer lays Concrete. 01183_ U-05 Engineer builds a Wall. 01183_ Acquired 25 matter. 01185_ R-06 Scavenger collects Lgt. Ion Engine. 01188_ U-05 Engineer builds a Wall. 01190_ R-06 Scavenger collects Aluminum Leg. 01212_ ALERT: Infestation in the mines, dispatching Demolisher response squad. 01251_ C-30 ARC bursts open, deploying its payload. 01251_ D-53 Grenadier unfolds itself. 01254_ Med. Laser destroyed. 01256_ U-05 Engineer lays Concrete. 01256_ Released Assault Rifle. 01256_ Released Huge Storage Unit. 01256_ Released Wheel. 01256_ Released Imp. Terrain Scanner. 01256_ Released Lgt. Nuclear Core. 01257_ U-05 Engineer builds a Wall. Map ----- +----------------------------------------------------+ | ????????????#??? ? ??? ? ??? ? ? ??????#?#?????? | | ????????????# ??#????????#?????? ??????????????? | | ????????????# ?????????#??????#?# #?#??#?????????? | | ??????????#?# #???????##??##?#?# #??????????????? | | ?????#??????# ####???##?????#??#[#???????#??????? | | ???????????## ###??????????#=#??????????????? | | ???????##???? # #????????### #??##??????????? | | ?????????????#### ####???????# *[#?????#????????? | | ?????#?????????# = ###?????# ###??????????????? | | ??????#?????#?### #??????# ##?????#?????????? | | ??????????#??## [ #?##???# #??#?????#???????? | | ??????#???#?## #??#????# #???#????????????? | | ????????????# ###?????## #??????????#?????? | | ????????????## ##%##?#????## ##???????????????? | | ?????????????#####?# ########## #?????????????#??? | | ????#???????#??????# #????????????????? | | ??????#???########## ############??#????????#????? | | ???????????# ##??##??????????#???????????? | | ???????????# ##?#??????#?????????????????? | | ????????#??# #?????????#???#??# ????????? | | ??????#????# """ """ #???????#?####??????????????? | | ???????????# """ """ #??####?####?##?????????????? | | ???????#???# """ """ #### ## ######?#???????????? | | ???????????# ## ?????????? | | ???????????# """ """ ## ##??#??#??????????? | | ??????????## """ """ ## @ ! #????????????????? | | ???????????# """ """ uu% d[= #??#?????????????? | | ???????????# ### d! #???#????????????? | | ???????????############ ##????????????????? | | ??????????????????????## #???????#?????????? | | ???????#???#????#??????## ### ##?#???????????????? | | ???????????????????????? ?? #??????????????????? | | ???????????????????????####??##??????????????????? | | ???????? ??????????????#????#????????????????????? | | ????????????????????#?????????????????#??????????? | | ?????????????????????????????????????????????????? | | ??????????????????????#??????????????????????????? | | ??????????????????????#??????????????????????????? | | ?????????????????????????????????????????????????? | | ????????????????????#????????????????????????????? | | ?????????????????????????????????????????????????? | | ???????????????????? ????????????????????????????? | | ?????????????????????????????????????????????????? | | ?????????????????????????????????????????????????? | | ?????????????????????????????????????????????????? | | ?????????????????????????????????????????????????? | | ?????????????????????????????????????????????????? | | ?????????????????????????????????????????????????? | | ?????????????????????????????????????????????????? | | ?????????????????????????????????????????????????? | +----------------------------------------------------+ Best States ------------- Heat Dissipation 25 Energy Generation 14 Energy Capacity 250 Matter Stores 300 Matter Capacity 300 Sight Range 16 Terrain Scan Range 16 Terrain Scan Density 10 Evasion (%) 50 Recoil Reduction 2 Item Schematics ----------------- None Robot Schematics ------------------ None Fabricated ------------ Nothing Alien Tech Used ----------------- None Achievements -------------- None Challenges ------------ None Game ------ Seed CoreShrapnelSegregator Manual? 0 Play Time 00:09:06 Cumulative 13.8 hours Start 2024.04.25 @ 21:00:57 End 2024.04.25 @ 21:08:35 Sessions 1 Manual Loads 0 Difficulty Rogue Special Mode None Game No. 29 Rogue 29 Adventurer 0 Explorer 0 Win Type - Total 0 Types 0/0/0/0/0/0/0/0/0 Lore% 18 Gallery% 19 Achievement% 16 Wizard Run 0 Options --------- Layout 1 ASCII 0 Keyboard 0 Movement Vi Keybinds 0 Fullscreen 2 Font 24/Smallcaps Map View 50x35 Zoom Use 0% Tactical HUD 1 Map Filters NONE Filters NONE Steam 1 RUN: d0162b24-4fcc-4641-bc81-cdd1f0936b09